fUST/lending_fUST_20250212
["ID","MTS","AMOUNT","RATE_DAILY","PERIOD"]
[352845083,1739364640553,-500.0,0.00012054,2]
[352845084,1739364640563,-2049.57,0.00012054,2]
[352845085,1739364640572,-500.0,0.00012054,2]
[352845086,1739364640583,-500.0,0.00012054,2]
[352845087,1739364640594,-500.0,0.00012054,2]
[352845088,1739364640604,-6002.08,0.00012054,2]
[352845089,1739364640615,-500.0,0.00012054,2]
[352845090,1739364640625,-979.8,0.00012054,2]
[352845091,1739364640634,-500.0,0.00012054,2]
[352845092,1739364640644,-500.0,0.00012054,2]
[352845093,1739364640653,-500.0,0.00012054,2]
[352845094,1739364640662,-500.0,0.00012054,2]
[352845095,1739364640671,-351.00438361,0.00012054,2]
[352845096,1739364640681,-500.0,0.00012054,2]
[352845097,1739364640690,-500.0,0.00012054,2]
[352845098,1739364640700,-205.16630938,0.00012054,2]
[352845099,1739364640709,-500.0,0.00012054,2]
[352845100,1739364640719,-702.54,0.00012054,2]
[352845101,1739364640727,-610.23,0.00012054,2]
[352845102,1739364640737,-1654.26865281,0.00012054,2]
[352845103,1739364640834,-517.81134719,0.00012054,2]
[352845104,1739364640843,-500.0,0.00012054,2]
[352845105,1739364640852,-500.0,0.00012054,2]
[352845106,1739364640862,-83.25434354,0.00012054,2]
[352845107,1739364640873,-331.014997,0.00012054,2]
[352845108,1739364640884,-85.73065946,0.00012054,2]
[352845109,1739364640894,-500.0,0.00012054,2]
[352845110,1739364640903,-500.0,0.00012054,2]
[352845111,1739364640912,-500.0,0.00012054,2]
[352845112,1739364640921,-500.0,0.00012054,2]
[352845113,1739364640930,-500.0,0.00012054,2]
[352845114,1739364640940,-500.0,0.00012191,2]
[352845115,1739364640950,-500.0,0.00012191,2]
[352845116,1739364640959,-600.92729308,0.00012191,2]
[352845117,1739364640969,-870.74,0.00012191,2]
[352845118,1739364640978,-500.0,0.00012191,2]
[352845119,1739364640987,-2049.57,0.00012191,2]
[352845120,1739364640996,-500.0,0.00012191,2]
[352845121,1739364641006,-500.0,0.00012191,2]
[352845122,1739364641015,-500.0,0.00012191,2]
[352845123,1739364641024,-500.0,0.00012191,2]
[352845124,1739364641034,-6002.08,0.00012191,2]
[352845125,1739364641043,-500.0,0.00012191,2]
[352845126,1739364641052,-979.8,0.00012191,2]
[352845127,1739364641062,-500.0,0.00012191,2]
[352845128,1739364641071,-500.0,0.00012191,2]
[352845129,1739364641080,-500.0,0.00012191,2]
[352845130,1739364641094,-500.0,0.00012191,2]
[352845131,1739364641103,-500.0,0.00012191,2]
[352845132,1739364641112,-500.0,0.00012191,2]
[352845133,1739364641122,-500.0,0.00012191,2]
[352845134,1739364641132,-702.54,0.00012191,2]
[352845135,1739364641142,-610.23,0.00012191,2]
[352845136,1739364641151,-2172.08,0.00012191,2]
[352845137,1739364641162,-500.0,0.00012191,2]
[352845138,1739364641171,-500.0,0.00012191,2]
[352845139,1739364641181,-500.0,0.00012191,2]
[352845140,1739364641190,-500.0,0.00012191,2]
[352845141,1739364641199,-500.0,0.00012191,2]
[352845142,1739364641209,-500.0,0.00012191,2]
[352845143,1739364641218,-500.0,0.00012191,2]
[352845144,1739364641227,-500.0,0.00012191,2]
[352845145,1739364641236,-641.65384366,0.00012327,2]
[352845146,1739364641246,-500.0,0.00012328,2]
[352845147,1739364641255,-500.0,0.00012328,2]
[352845148,1739364641265,-870.74,0.00012328,2]
[352845149,1739364641275,-500.0,0.00012328,2]
[352845150,1739364641284,-2049.57,0.00012328,2]
[352845151,1739364641293,-500.0,0.00012328,2]
[352845152,1739364641303,-500.0,0.00012328,2]
[352845153,1739364641312,-500.0,0.00012328,2]
[352845154,1739364641321,-500.0,0.00012328,2]
[352845155,1739364641331,-6002.08,0.00012328,2]
[352845156,1739364641340,-500.0,0.00012328,2]
[352845157,1739364641350,-979.8,0.00012328,2]
[352845158,1739364641360,-500.0,0.00012328,2]
[352845159,1739364641371,-500.0,0.00012328,2]
[352845160,1739364641380,-500.0,0.00012328,2]
[352845161,1739364641390,-500.0,0.00012328,2]
[352845162,1739364641399,-500.0,0.00012328,2]
[352845163,1739364641408,-500.0,0.00012328,2]
[352845164,1739364641418,-500.0,0.00012328,2]
[352845165,1739364641428,-546.3944264,0.00012328,2]
[352845166,1739364641440,-156.1455736,0.00012328,2]
[352845167,1739364641450,-610.23,0.00012328,2]
[352845168,1739364641459,-2172.08,0.00012328,2]
[352845169,1739364641469,-500.0,0.00012328,2]
[352845170,1739364641479,-500.0,0.00012328,2]
[352845171,1739364641488,-500.0,0.00012328,2]
[352845172,1739364641498,-500.0,0.00012328,2]
[352845173,1739364641507,-500.0,0.00012328,2]
[352845174,1739364641517,-500.0,0.00012328,2]
[352845175,1739364641526,-500.0,0.00012328,2]
[352845176,1739364641535,-500.0,0.00012328,2]
[352845177,1739364641545,-1000.9887709,0.00012439,2]
[352845178,1739364641554,-1000.0,0.00012439,2]
[352845179,1739364641563,-1000.0,0.00012439,2]
[352845180,1739364641573,-1000.0,0.00012441,2]
[352845181,1739364641582,-500.0,0.00012465,2]
[352845182,1739364641592,-154.36607392,0.00012465,2]
[352845183,1739364641601,-870.74,0.00012465,2]
[352845184,1739364641611,-500.0,0.00012465,2]
[352845185,1739364641621,-2049.57,0.00012465,2]
[352845186,1739364641630,-500.0,0.00012465,2]
[352845187,1739364641639,-500.0,0.00012465,2]
[352845188,1739364641648,-500.0,0.00012465,2]
[352845189,1739364641658,-500.0,0.00012465,2]
[352845190,1739364641668,-2148.13101627,0.00012465,2]
[352845191,1739364641715,-1012.6,0.00012465,2]
[352845192,1739364641726,-1968.95740494,0.00012465,2]
[352845193,1739364641737,-268.735003,0.00012465,2]
[352845194,1739364641750,-603.65657579,0.00012465,2]
[352845195,1739364641759,-500.0,0.00012465,2]
[352845196,1739364641769,-979.8,0.00012465,2]
[352845197,1739364641778,-500.0,0.00012465,2]
[352845198,1739364641788,-500.0,0.00012465,2]
[352845199,1739364641798,-500.0,0.00012465,2]
[352845200,1739364641808,-500.0,0.00012465,2]
[352845201,1739364641818,-500.0,0.00012465,2]
[352845202,1739364641827,-500.0,0.00012465,2]
[352845203,1739364641837,-500.0,0.00012465,2]
[352845204,1739364641847,-702.54,0.00012465,2]
[352845205,1739364641857,-610.23,0.00012465,2]
[352845206,1739364641867,-1055.38117682,0.00012465,2]
[352845207,1739364641880,-1116.69882318,0.00012465,2]
[352845208,1739364641997,-500.0,0.00012465,2]
[352845209,1739364642007,-500.0,0.00012465,2]
[352845210,1739364642017,-500.0,0.00012465,2]
[352845211,1739364642030,-500.0,0.00012465,2]
[352845212,1739364642039,-500.0,0.00012465,2]
[352845213,1739364642049,-64.96254638,0.00012465,2]
[352845214,1739364642068,-435.03745362,0.00012465,2]
[352845215,1739364642079,-500.0,0.00012465,2]
[352845216,1739364642092,-398.96254489,0.00012465,2]
[352845217,1739364642113,-101.03745511,0.00012465,2]
[352845218,1739364642122,-793.13169212,0.00012596,2]
[352845219,1739364642135,-206.86830788,0.00012596,2]
[352845220,1739364642147,-500.0,0.00012602,2]
[352845221,1739364642157,-870.74,0.00012602,2]
[352845222,1739364642169,-500.0,0.00012602,2]
[352845223,1739364642178,-2049.57,0.00012602,2]
[352845224,1739364642188,-500.0,0.00012602,2]
[352845225,1739364642198,-500.0,0.00012602,2]
[352845226,1739364642207,-500.0,0.00012602,2]
[352845227,1739364642217,-563.36,0.00012602,2]
[352845228,1739364642226,-6002.08,0.00012602,2]
[352845229,1739364642236,-500.0,0.00012602,2]
[352845230,1739364642246,-979.8,0.00012602,2]
[352845231,1739364642256,-500.0,0.00012602,2]
[352845232,1739364642267,-500.0,0.00012602,2]
[352845233,1739364642276,-500.0,0.00012602,2]
[352845234,1739364642287,-500.0,0.00012602,2]
[352845235,1739364642296,-500.0,0.00012602,2]
[352845236,1739364642305,-500.0,0.00012602,2]
[352845237,1739364642315,-500.0,0.00012602,2]
[352845238,1739364642324,-702.54,0.00012602,2]
[352845239,1739364642333,-610.23,0.00012602,2]
[352845240,1739364642343,-128.36128587,0.00012602,2]
[352845241,1739364642574,-336.22130197,0.00011527,2]
[352845242,1739364642585,-2043.71871413,0.00012602,2]
[352845243,1739364642595,-500.0,0.00012602,2]
[352845244,1739364642606,-500.0,0.00012602,2]
[352845245,1739364642615,-500.0,0.00012602,2]
[352845246,1739364642625,-545.62559826,0.00012602,2]
[352845247,1739364642634,-500.0,0.00012602,2]
[352845248,1739364642643,-500.0,0.00012602,2]
[352845249,1739364642652,-500.0,0.00012602,2]
[352845250,1739364642662,-500.0,0.00012602,2]
[352845252,1739364642671,-324.53780655,0.00012739,2]
[352845254,1739364642680,-870.74,0.00012739,2]
[352845256,1739364642690,-500.0,0.00012739,2]
[352845258,1739364642699,-1497.59018978,0.00012739,2]
[352845277,1739364643379,-551.97981022,0.00012739,2]
[352845278,1739364643388,-351.30018578,0.00012739,2]
[352845301,1739364643753,3094.88532674,9.585e-05,2]
[352845313,1739364646300,-500.0,0.00010958,2]
[352845314,1739364646309,-532.01014934,0.00010958,2]
[352845315,1739364646322,-11.88985066,0.00010958,2]
[352845316,1739364646331,-647.78,0.00011095,2]
[352845317,1739364646341,-303.00543146,0.00011095,2]
[352845318,1739364727764,400.0,0.00010685,2]
[352845349,1739365416226,966.75313247,8.214e-05,2]
[352845352,1739365629144,-338.17776113,9.386e-05,2]
[352845353,1739365630128,-4661.82223887,9.386e-05,2]
[352845354,1739365630149,-4049.07653854,9.481e-05,2]
[352845355,1739365630170,-300.0,9.673e-05,2]
[352845356,1739365630191,-23893.5624075,9.674e-05,2]
[352845357,1739365630212,-940.2946808,9.856e-05,2]
[352845358,1739365630233,-824.2526828,9.938e-05,2]
[352845359,1739365630254,-3419.2468114,0.00010045,2]
[352845360,1739365630278,-420.0,0.0001064,2]
[352845361,1739365630301,-392.0984956,0.00010653,2]
[352845362,1739365630323,-491.23257316,0.00010857,2]
[352845363,1739365630348,-500.0,0.00010957,2]
[352845364,1739365630370,-500.0,0.00010957,2]
[352845365,1739365630391,-500.0,0.00010957,2]
[352845366,1739365630412,-252.59908625,0.00010957,2]
[352845367,1739365645083,-3583.32561914,0.00010847,2]
[352845368,1739365645107,-247.40091375,0.00010957,2]
[352845369,1739365645130,-500.0,0.00010957,2]
[352845370,1739365645153,-354.19753283,0.00010957,2]
[352845371,1739365645173,-500.0,0.00010958,2]
[352845372,1739365645194,-500.0,0.00010958,2]
[352845373,1739365645215,-500.0,0.00010958,2]
[352845374,1739365645235,-500.78138542,0.00010958,2]
[352845375,1739365645256,-100.90966461,0.00010958,2]
[352845376,1739365653090,-399.09033539,0.00010958,2]
[352845377,1739365653114,-50.90966461,0.00010958,2]
[352845483,1739365750111,-1530.0,0.0001,2]
[352845484,1739365750132,-1527.0,0.0001,2]
[352845485,1739365750154,-1527.0,0.0001,2]
[352845486,1739365750175,-1527.0,0.0001,2]
[352845487,1739365750209,-300.0,0.00010957,2]
[352845488,1739365750229,-449.09033539,0.00010958,2]
[352845489,1739365750250,-577.03945351,0.00010958,2]
[352845490,1739365750271,-500.0,0.00010958,2]
[352845491,1739365750291,-500.0,0.00010958,2]
[352845492,1739365750311,-503.63709508,0.00010958,2]
[352845493,1739365750331,-552.95322229,0.00010958,2]
[352845494,1739365750350,-500.0,0.00010958,2]
[352845495,1739365750371,-500.0,0.00010958,2]
[352845496,1739365750391,-500.0,0.00010958,2]
[352845497,1739365750411,-500.0,0.00010958,2]
[352845498,1739365750431,-460.76973722,0.00010958,2]
[352845499,1739365750453,-579.38244099,0.00010958,2]
[352845500,1739365750482,-500.0,0.00010958,2]
[352845501,1739365750505,-500.0,0.00010958,2]
[352845502,1739365750528,-500.0,0.00010958,2]
[352845503,1739365750554,-500.0,0.00010958,2]
[352845504,1739365750577,-500.0,0.00010958,2]
[352845505,1739365750599,-500.0,0.00010958,2]
[352845506,1739365750621,-502.23891831,0.00010958,2]
[352845507,1739365750642,-500.0,0.00010958,2]
[352845508,1739365750663,-416.44259178,0.00010958,2]
[352845509,1739365790512,400.0,0.00010685,2]
[352845516,1739365836237,-300.0,0.00010957,2]
[352845517,1739365836247,-500.0,0.00010958,2]
[352845518,1739365836257,-501.55286419,0.00010958,2]
[352845519,1739365836267,-500.0,0.00010958,2]
[352845520,1739365836276,-500.0,0.00010958,2]
[352845521,1739365836285,-503.07941548,0.00010958,2]
[352845522,1739365836295,-500.0,0.00010958,2]
[352845523,1739365836304,-500.0,0.00010958,2]
[352845524,1739365836314,-237.78001962,0.00010958,2]
[352845525,1739365836323,-500.0,0.00010958,2]
[352845526,1739365836332,-500.0,0.00010958,2]
[352845527,1739365836342,-44.73677135,0.00010958,2]
[352845528,1739365836357,-457.94988882,0.00010958,2]
[352845529,1739365836367,-500.0,0.00010958,2]
[352845530,1739365836377,-500.0,0.00010958,2]
[352845531,1739365836386,-500.0,0.00010958,2]
[352845532,1739365836396,-627.30091157,0.00010958,2]
[352845533,1739365836406,-500.0,0.00010958,2]
[352845534,1739365836415,-502.31845736,0.00010958,2]
[352845535,1739365836424,-401.64734732,0.00010958,2]
[352845536,1739365836434,-500.0,0.00010958,2]
[352845537,1739365836443,-500.0,0.00010958,2]
[352845538,1739365836452,-500.0,0.00010958,2]
[352845539,1739365836462,-500.0,0.00010958,2]
[352845540,1739365836471,-465.18673494,0.00010958,2]
[352845541,1739365836480,-502.68201338,0.00010958,2]
[352845543,1739365836491,-500.0,0.00010958,2]
[352845546,1739365836503,-500.0,0.00010958,2]
[352845547,1739365836512,-500.0,0.00010958,2]
[352845549,1739365836521,-500.0,0.00010958,2]
[352845551,1739365836531,-500.0,0.00010958,2]
[352845553,1739365836543,-500.0,0.00010958,2]
[352845555,1739365836553,-500.48654216,0.00010958,2]
[352845557,1739365836562,-500.0,0.00010958,2]
[352845559,1739365836574,-500.0,0.00010958,2]
[352845561,1739365836584,-500.0,0.00010958,2]
[352845563,1739365836594,-500.0,0.00010958,2]
[352845565,1739365836603,-500.0,0.00010958,2]
[352845567,1739365836613,-500.0,0.00010958,2]
[352845569,1739365836623,-500.0,0.00010958,2]
[352845571,1739365836632,-500.0,0.00010958,2]
[352845573,1739365836641,-500.0,0.00010958,2]
[352845575,1739365836651,-500.0,0.00010958,2]
[352845576,1739365836660,-500.0,0.00010958,2]
[352845577,1739365836670,-564.72216872,0.00010958,2]
[352845578,1739365836680,-500.0,0.00010958,2]
[352845579,1739365836690,-500.0,0.00010958,2]
[352845580,1739365836700,-500.0,0.00010958,2]
[352845581,1739365836710,-500.0,0.00010958,2]
[352845582,1739365836719,-500.0,0.00010958,2]
[352845583,1739365836728,-500.0,0.00010958,2]
[352845584,1739365836738,-500.0,0.00010958,2]
[352845585,1739365836748,-501.85947563,0.00010958,2]
[352845586,1739365836757,-500.0,0.00010958,2]
[352845587,1739365836767,-500.0,0.00010958,2]
[352845588,1739365836777,-500.0,0.00010958,2]
[352845589,1739365836787,-523.26795905,0.00010958,2]
[352845590,1739365836797,-500.0,0.00010958,2]
[352845591,1739365836807,-500.0,0.00010958,2]
[352845592,1739365836817,-500.0,0.00010958,2]
[352845593,1739365836827,-500.0,0.00010958,2]
[352845594,1739365836836,-500.0,0.00010958,2]
[352845595,1739365836845,-500.0,0.00010958,2]
[352845596,1739365836855,-500.0,0.00010958,2]
[352845597,1739365836864,-500.0,0.00010958,2]
[352845598,1739365836874,-500.0,0.00010958,2]
[352845599,1739365836883,-500.0,0.00010958,2]
[352845600,1739365836893,-500.0,0.00010958,2]
[352845601,1739365836902,-500.0,0.00010958,2]
[352845602,1739365836912,-500.0,0.00010958,2]
[352845603,1739365836922,-500.0,0.00010958,2]
[352845604,1739365836931,-572.27928186,0.00010958,2]
[352845605,1739365836941,-504.5404039,0.00010958,2]
[352845606,1739365836951,-500.0,0.00010958,2]
[352845607,1739365836961,-500.0,0.00010958,2]
[352845608,1739365836970,-500.0,0.00010958,2]
[352845609,1739365836980,-500.0,0.00010958,2]
[352845610,1739365836990,-500.0,0.00010958,2]
[352845611,1739365837001,-500.0,0.00010958,2]
[352845612,1739365837010,-500.0,0.00010958,2]
[352845613,1739365837020,-500.0,0.00010958,2]
[352845614,1739365837030,-500.0,0.00010958,2]
[352845615,1739365837039,-500.0,0.00010958,2]
[352845616,1739365837049,-226.68405958,0.00010958,2]
[352845617,1739365837058,-500.0,0.00010958,2]
[352845618,1739365837067,-500.0,0.00010958,2]
[352845619,1739365837077,-500.0,0.00010958,2]
[352845620,1739365837087,-500.0,0.00010958,2]
[352845621,1739365837097,-500.0,0.00010958,2]
[352845622,1739365837107,-500.0,0.00010958,2]
[352845623,1739365837118,-507.09090585,0.00010958,2]
[352845624,1739365837127,-500.0,0.00010958,2]
[352845625,1739365837137,-500.0,0.00010958,2]
[352845626,1739365837147,-493.91721074,0.00010958,2]
[352845627,1739365837156,-698.96,0.00010958,2]
[352845628,1739365837166,-500.0,0.00010958,2]
[352845629,1739365837176,-500.0,0.00010958,2]
[352845630,1739365837186,-500.0,0.00010958,2]
[352845631,1739365837197,-500.0,0.00010958,2]
[352845632,1739365837208,-500.0,0.00010958,2]
[352845633,1739365837218,-500.0,0.00010958,2]
[352845634,1739365837230,-500.0,0.00010958,2]
[352845635,1739365837240,-500.0,0.00010958,2]
[352845636,1739365837250,-505.87092413,0.00010958,2]
[352845637,1739365837260,-500.0,0.00010958,2]
[352845638,1739365837270,-500.0,0.00010958,2]
[352845639,1739365837281,-500.0,0.00010958,2]
[352845640,1739365837291,-1640.1,0.00010958,2]
[352845641,1739365837301,-339.2364921,0.00010958,2]
[352845642,1739365837311,-500.0,0.00010958,2]
[352845643,1739365837322,-500.0,0.00010958,2]
[352845644,1739365837331,-1146.91,0.00010958,2]
[352845645,1739365837341,-501.87346695,0.00010958,2]
[352845646,1739365837350,-245.80808486,0.00010958,2]
[352845647,1739365837360,-500.0,0.00010958,2]
[352845648,1739365837370,-500.0,0.00010958,2]
[352845649,1739365837380,-500.0,0.00010958,2]
[352845650,1739365837391,-500.0,0.00010958,2]
[352845651,1739365837400,-500.0,0.00010958,2]
[352845652,1739365837410,-500.0,0.00010958,2]
[352845653,1739365837419,-500.0,0.00010958,2]
[352845654,1739365837429,-500.0,0.00010958,2]
[352845655,1739365837439,-500.0,0.00010958,2]
[352845656,1739365837450,-500.0,0.00010958,2]
[352845657,1739365837461,-500.0,0.00010958,2]
[352845658,1739365837470,-500.0,0.00010958,2]
[352845659,1739365837479,-500.0,0.00010958,2]
[352845660,1739365837493,-500.0,0.00010958,2]
[352845661,1739365837632,-500.0,0.00010958,2]
[352845662,1739365837642,-500.0,0.00010958,2]
[352845663,1739365837651,-500.0,0.00010958,2]
[352845664,1739365837661,-304.4,0.00010958,2]
[352845665,1739365837672,-500.0,0.00010958,2]
[352845666,1739365837681,-501.09575593,0.00010958,2]
[352845667,1739365837691,-500.0,0.00010958,2]
[352845668,1739365837703,-500.0,0.00010958,2]
[352845669,1739365837714,-500.0,0.00010958,2]
[352845670,1739365837723,-500.0,0.00010958,2]
[352845671,1739365837734,-500.0,0.00010958,2]
[352845672,1739365837745,-506.24240591,0.00010958,2]
[352845673,1739365837754,-500.0,0.00010958,2]
[352845674,1739365837764,-500.0,0.00010958,2]
[352845675,1739365837774,-500.0,0.00010958,2]
[352845676,1739365837783,-312.37,0.00010958,2]
[352845677,1739365837794,-500.0,0.00010958,2]
[352845678,1739365837803,-560.03647683,0.00010958,2]
[352845679,1739365837813,-4882.29,0.00010958,2]
[352845680,1739365837822,-487.38018915,0.00010958,2]
[352845681,1739365837832,-500.0,0.00010958,2]
[352845683,1739365837842,-500.0,0.00010958,2]
[352845684,1739365837851,-378.3472983,0.00010958,2]
[352845685,1739365837861,-629.87,0.00010958,2]
[352845686,1739365837870,-500.0,0.00010958,2]
[352845687,1739365837879,-500.0,0.00010958,2]
[352845688,1739365837888,-500.0,0.00010958,2]
[352845689,1739365837897,-500.0,0.00010958,2]
[352845690,1739365837907,-500.0,0.00010958,2]
[352845691,1739365837916,-500.0,0.00010958,2]
[352845692,1739365837926,-507.37,0.00010958,2]
[352845693,1739365837935,-500.75016199,0.00010958,2]
[352845694,1739365837944,-500.0,0.00010958,2]
[352845695,1739365837953,-500.0,0.00010958,2]
[352845696,1739365837962,-500.46450138,0.00010958,2]
[352845697,1739365837971,-990.14,0.00010958,2]
[352845698,1739365837980,-500.98793775,0.00010958,2]
[352845699,1739365837990,-500.0,0.00010958,2]
[352845700,1739365838000,-500.0,0.00010958,2]
[352845701,1739365838009,-500.0,0.00010958,2]
[352845702,1739365838018,-500.0,0.00010958,2]
[352845703,1739365838028,-505.4428216,0.00010958,2]
[352845704,1739365838037,-583.55740822,0.00010958,2]
[352845705,1739365838046,-1823.91,0.00010958,2]
[352845706,1739365838056,-500.0,0.00010958,2]
[352845707,1739365838065,-500.0,0.00010958,2]
[352845708,1739365838074,-500.0,0.00010958,2]
[352845709,1739365838084,-595.2329876,0.00010958,2]
[352845710,1739365838094,-500.0,0.00010958,2]
[352845711,1739365838103,-500.0,0.00010958,2]
[352845712,1739365838112,-500.0,0.00010958,2]
[352845713,1739365838122,-500.0,0.00010958,2]
[352845714,1739365838133,-506.43348884,0.00010958,2]
[352845715,1739365838143,-502.32231012,0.00010958,2]
[352845716,1739365838151,-500.0,0.00010958,2]
[352845717,1739365838161,-500.0,0.00010958,2]
[352845718,1739365838171,-500.0,0.00010958,2]
[352845719,1739365838180,-500.0,0.00010958,2]
[352845720,1739365838190,-500.0,0.00010958,2]
[352845721,1739365838200,-500.0,0.00010958,2]
[352845722,1739365838210,-500.0,0.00010958,2]
[352845723,1739365838219,-500.0,0.00010958,2]
[352845724,1739365838228,-500.0,0.00010958,2]
[352845725,1739365838237,-500.0,0.00010958,2]
[352845726,1739365838246,-500.0,0.00010958,2]
[352845727,1739365838255,-500.0,0.00010958,2]
[352845728,1739365838265,-500.0,0.00010958,2]
[352845729,1739365838274,-500.0,0.00010958,2]
[352845730,1739365838284,-500.0,0.00010958,2]
[352845731,1739365838293,-500.0,0.00010958,2]
[352845732,1739365838302,-500.26689397,0.00010958,2]
[352845733,1739365838312,-500.0,0.00010958,2]
[352845734,1739365838323,-500.0,0.00010958,2]
[352845735,1739365838332,-500.0,0.00010958,2]
[352845736,1739365838341,-500.33558018,0.00010958,2]
[352845737,1739365838351,-500.0,0.00010958,2]
[352845738,1739365838360,-500.0,0.00010958,2]
[352845739,1739365838370,-7438.69753278,0.00010972,2]
[352845740,1739365838380,-317.1330592,0.00011094,2]
[352845741,1739365838390,-500.0,0.00011095,2]
[352845742,1739365838399,-522.90405629,0.00011095,2]
[352845743,1739365838409,-500.0,0.00011095,2]
[352845744,1739365838418,-164.89384226,0.00011095,2]
[352845745,1739365838428,-253.92924666,0.00011095,2]
[352845746,1739365838437,-500.0,0.00011095,2]
[352845747,1739365838446,-500.0,0.00011095,2]
[352845748,1739365838456,-500.0,0.00011095,2]
[352845749,1739365838470,-500.0,0.00011095,2]
[352845750,1739365838479,-500.0,0.00011095,2]
[352845751,1739365838490,-500.0,0.00011095,2]
[352845752,1739365838503,-500.0,0.00011095,2]
[352845753,1739365838512,-500.0,0.00011095,2]
[352845754,1739365838522,-500.0,0.00011095,2]
[352845755,1739365838531,-500.0,0.00011095,2]
[352845756,1739365838542,-500.0,0.00011095,2]
[352845757,1739365838552,-500.0,0.00011095,2]
[352845758,1739365838562,-500.0,0.00011095,2]
[352845759,1739365838573,-500.0,0.00011095,2]
[352845760,1739365838583,-361.23025921,0.00011095,2]
[352845761,1739365838593,-500.0,0.00011095,2]
[352845762,1739365838603,-500.0,0.00011095,2]
[352845763,1739365838612,-500.0,0.00011095,2]
[352845764,1739365838621,-500.0,0.00011095,2]
[352845765,1739365838630,-500.0,0.00011095,2]
[352845766,1739365838639,-500.0,0.00011095,2]
[352845767,1739365838648,-503.0558322,0.00011095,2]
[352845768,1739365838658,-500.0,0.00011095,2]
[352845769,1739365838667,-698.96,0.00011095,2]
[352845770,1739365838677,-500.0,0.00011095,2]
[352845771,1739365838687,-500.0,0.00011095,2]
[352845772,1739365838696,-500.0,0.00011095,2]
[352845773,1739365838705,-174.74641207,0.00011095,2]
[352845774,1739365838715,-1640.1,0.00011095,2]
[352845775,1739365838724,-500.0,0.00011095,2]
[352845776,1739365838734,-1146.91,0.00011095,2]
[352845777,1739365838743,-500.0,0.00011095,2]
[352845778,1739365838753,-500.0,0.00011095,2]
[352845779,1739365838762,-500.0,0.00011095,2]
[352845780,1739365838771,-500.0,0.00011095,2]
[352845781,1739365838780,-500.0,0.00011095,2]
[352845782,1739365838789,-500.0,0.00011095,2]
[352845783,1739365838798,-500.0,0.00011095,2]
[352845784,1739365838807,-500.0,0.00011095,2]
[352845785,1739365838816,-500.0,0.00011095,2]
[352845786,1739365838826,-500.0,0.00011095,2]
[352845787,1739365838835,-500.0,0.00011095,2]
[352845788,1739365838845,-500.0,0.00011095,2]
[352845789,1739365838854,-4882.29,0.00011095,2]
[352845790,1739365838864,-513.14,0.00011095,2]
[352845791,1739365838874,-629.87,0.00011095,2]
[352845792,1739365838883,-500.0,0.00011095,2]
[352845793,1739365838892,-500.0,0.00011095,2]
[352845794,1739365838901,-500.0,0.00011095,2]
[352845795,1739365838911,-500.0,0.00011095,2]
[352845796,1739365838920,-507.37,0.00011095,2]
[352845797,1739365838929,-500.0,0.00011095,2]
[352845798,1739365838938,-500.0,0.00011095,2]